[Event "Titled Tuesday Blitz December 06 Early 2022"]
[White "Grot, Blazej"]
[Black "Nambiar, Vivek"]
[WhiteFideId "21835845"]
[BlackFideId "5005329"]
[WhiteElo "1823"]
[BlackElo "2127"]
[Result "1-0"]
[Round "06"]
[TimeControl "180+1"]
[Date "2022.12.07"]
[WhiteClock "0:00:02"]
[BlackClock "0:00:01"]

1. e4 {[%clk 0:03:00]}  e6 {[%clk 0:02:58]} 2. d3 {[%clk 0:02:58]}  c5 {[%clk 0:02:56]} 3. Nd2 {[%clk 0:02:59]}  Nc6 {[%clk 0:02:51]} 4. Ngf3 {[%clk 0:02:59]}  g6 {[%clk 0:02:52]} 5. Be2 {[%clk 0:02:57]}  Bg7 {[%clk 0:02:51]} 6. c3 {[%clk 0:02:58]}  Nge7 {[%clk 0:02:52]} 7. O-O {[%clk 0:02:58]}  O-O {[%clk 0:02:52]} 8. Qc2 {[%clk 0:02:57]}  d5 {[%clk 0:02:49]} 9. Re1 {[%clk 0:02:57]}  d4 {[%clk 0:02:32]} 10. Nf1 {[%clk 0:02:42]}  e5 {[%clk 0:02:22]} 11. h4 {[%clk 0:02:37]}  f5 {[%clk 0:02:12]} 12. exf5 {[%clk 0:02:36]}  gxf5 {[%clk 0:02:11]} 13. h5 {[%clk 0:02:19]}  Nd5 {[%clk 0:02:09]} 14. Bg5 {[%clk 0:02:13]}  Qe8 {[%clk 0:02:06]} 15. h6 {[%clk 0:02:11]}  Bf6 {[%clk 0:02:03]} 16. Qb3 {[%clk 0:02:10]}  Be6 {[%clk 0:01:59]} 17. Qxb7 {[%clk 0:02:09]}  Rb8 {[%clk 0:01:59]} 18. Qa6 {[%clk 0:02:03]}  Rb6 {[%clk 0:01:57]} 19. Qa4 {[%clk 0:02:02]}  Qg6 {[%clk 0:01:50]} 20. Bxf6 {[%clk 0:02:02]}  Rxf6 {[%clk 0:01:50]} 21. c4 {[%clk 0:01:25]}  Nf4 {[%clk 0:01:47]} 22. Ng3 {[%clk 0:01:19]}  e4 {[%clk 0:01:42]} 23. dxe4 {[%clk 0:01:07]}  fxe4 {[%clk 0:01:42]} 24. Nh4 {[%clk 0:00:53]}  Qxh6 {[%clk 0:01:37]} 25. Nxe4 {[%clk 0:00:51]}  Qxh4 {[%clk 0:01:32]} 26. Nxf6+ {[%clk 0:00:50]}  Qxf6 {[%clk 0:01:32]} 27. Bf3 {[%clk 0:00:51]}  Bd7 {[%clk 0:01:19]} 28. Qa3 {[%clk 0:00:45]}  Ne5 {[%clk 0:01:15]} 29. Qxa7 {[%clk 0:00:28]}  Nxf3+ {[%clk 0:01:13]} 30. Kf1 {[%clk 0:00:27]}  Nxe1 {[%clk 0:00:27]} 31. Rxe1 {[%clk 0:00:28]}  Be6 {[%clk 0:00:26]} 32. b3 {[%clk 0:00:24]}  Bf7 {[%clk 0:00:24]} 33. Qa8+ {[%clk 0:00:20]}  Kg7 {[%clk 0:00:22]} 34. Qf3 {[%clk 0:00:20]}  Bh5 {[%clk 0:00:21]} 35. Qg3+ {[%clk 0:00:20]}  Kh6 {[%clk 0:00:18]} 36. Re4 {[%clk 0:00:18]}  Be2+ {[%clk 0:00:16]} 37. Kg1 {[%clk 0:00:15]}  d3 {[%clk 0:00:16]} 38. Rxf4 {[%clk 0:00:13]}  Qa1+ {[%clk 0:00:15]} 39. Kh2 {[%clk 0:00:13]}  Rg6 {[%clk 0:00:12]} 40. Rh4+ {[%clk 0:00:08]}  Kg7 {[%clk 0:00:12]} 41. Qc7+ {[%clk 0:00:08]}  Kg8 {[%clk 0:00:10]} 42. Qxh7+ {[%clk 0:00:06]}  Kf8 {[%clk 0:00:08]} 43. Rh6 {[%clk 0:00:03]}  Qe5+ {[%clk 0:00:07]} 44. g3 {[%clk 0:00:03]}  Rxh6+ {[%clk 0:00:06]} 45. Qxh6+ {[%clk 0:00:04]}  Qg7 {[%clk 0:00:06]} 46. Qd6+ {[%clk 0:00:04]}  Qe7 {[%clk 0:00:06]} 47. Qh6+ {[%clk 0:00:03]}  Kg8 {[%clk 0:00:06]} 48. Qg6+ {[%clk 0:00:03]}  Qg7 {[%clk 0:00:06]} 49. Qe8+ {[%clk 0:00:03]}  Kh7 {[%clk 0:00:05]} 50. Qe4+ {[%clk 0:00:03]}  Qg6 {[%clk 0:00:05]} 51. Qe7+ {[%clk 0:00:03]}  Kh6 {[%clk 0:00:05]} 52. Qe3+ {[%clk 0:00:03]}  Qg5 {[%clk 0:00:05]} 53. Qe6+ {[%clk 0:00:03]}  Kh5 {[%clk 0:00:05]} 54. Qh3+ {[%clk 0:00:02]}  Kg6 {[%clk 0:00:04]} 55. Qe6+ {[%clk 0:00:03]}  Qf6 {[%clk 0:00:05]} 56. Qe4+ {[%clk 0:00:02]}  Qf5 {[%clk 0:00:05]} 57. Qe8+ {[%clk 0:00:02]}  Kg5 {[%clk 0:00:04]} 58. Qg8+ {[%clk 0:00:02]}  Kf6 {[%clk 0:00:03]} 59. Qf8+ {[%clk 0:00:02]}  Ke5 {[%clk 0:00:04]} 60. Qxc5+ {[%clk 0:00:02]}  Ke4 {[%clk 0:00:03]} 61. Qc6+ {[%clk 0:00:02]}  Kd4 {[%clk 0:00:02]} 62. Qd6+ {[%clk 0:00:02]}  Kc3 {[%clk 0:00:02]} 63. Qa3 {[%clk 0:00:02]}  Qh5+ {[%clk 0:00:01]} 64. Kg1 {[%clk 0:00:02]} 1-0


[Site "https://www.chess.com"]

[Event "Titled Tuesday Blitz December 06 Early 2022"]
[White "Han, Yichen"]
[Black "Manon-og, Ramon Jr."]
[WhiteFideId "1054430"]
[BlackFideId "5200776"]
[WhiteElo "2323"]
[BlackElo "2362"]
[Result "1-0"]
[Round "06"]
[TimeControl "180+1"]
[Date "2022.12.07"]
[WhiteClock "0:01:36"]
[BlackClock "0:02:23"]

1. d4 {[%clk 0:02:53]}  Nf6 {[%clk 0:02:55]} 2. c4 {[%clk 0:02:52]}  g6 {[%clk 0:02:54]} 3. Nc3 {[%clk 0:02:50]}  d5 {[%clk 0:02:54]} 4. cxd5 {[%clk 0:02:49]}  Nxd5 {[%clk 0:02:55]} 5. Bd2 {[%clk 0:02:49]}  Bg7 {[%clk 0:02:54]} 6. e4 {[%clk 0:02:49]}  Nxc3 {[%clk 0:02:55]} 7. Bxc3 {[%clk 0:02:50]}  c5 {[%clk 0:02:55]} 8. d5 {[%clk 0:02:48]}  Bxc3+ {[%clk 0:02:53]} 9. bxc3 {[%clk 0:02:49]}  Qa5 {[%clk 0:02:51]} 10. Qd2 {[%clk 0:02:49]}  O-O {[%clk 0:02:51]} 11. h4 {[%clk 0:02:45]}  e6 {[%clk 0:02:52]} 12. h5 {[%clk 0:02:45]}  exd5 {[%clk 0:02:52]} 13. hxg6 {[%clk 0:02:39]}  fxg6 {[%clk 0:02:51]} 14. Qxd5+ {[%clk 0:02:32]}  Kg7 {[%clk 0:02:46]} 15. Qe5+ {[%clk 0:02:26]}  Rf6 {[%clk 0:02:40]} 16. Qe7+ {[%clk 0:02:23]}  Rf7 {[%clk 0:02:37]} 17. Rxh7+ {[%clk 0:02:21]}  Kxh7 {[%clk 0:02:38]} 18. Qxf7+ {[%clk 0:02:18]}  Kh6 {[%clk 0:02:38]} 19. Qf6 {[%clk 0:02:02]}  Nd7 {[%clk 0:02:26]} 20. Qh8+ {[%clk 0:01:51]}  Kg5 {[%clk 0:02:26]} 21. Nh3+ {[%clk 0:01:36]}  Kg4 {[%clk 0:02:23]} 22. Be2# {[%clk 0:01:36]} 1-0


[Site "https://www.chess.com"]

[Event "Titled Tuesday Blitz December 06 Early 2022"]
[White "Hansen, Eric"]
[Black "Pajeken, Jakob Leon"]
[WhiteFideId "2606771"]
[BlackFideId "12942839"]
[WhiteElo "2568"]
[BlackElo "2414"]
[Result "1/2-1/2"]
[Round "06"]
[TimeControl "180+1"]
[Date "2022.12.07"]
[WhiteClock "0:00:04"]
[BlackClock "0:00:06"]

1. c4 {[%clk 0:02:50]}  e6 {[%clk 0:02:58]} 2. Nf3 {[%clk 0:02:39]}  d5 {[%clk 0:02:59]} 3. d4 {[%clk 0:02:38]}  dxc4 {[%clk 0:02:59]} 4. e3 {[%clk 0:02:38]}  Nf6 {[%clk 0:02:59]} 5. Bxc4 {[%clk 0:02:38]}  c5 {[%clk 0:02:59]} 6. O-O {[%clk 0:02:38]}  Nc6 {[%clk 0:03:00]} 7. Qe2 {[%clk 0:02:38]}  a6 {[%clk 0:03:00]} 8. Rd1 {[%clk 0:02:38]}  b5 {[%clk 0:03:00]} 9. dxc5 {[%clk 0:02:35]}  Qc7 {[%clk 0:03:01]} 10. Bd3 {[%clk 0:02:34]}  Nb4 {[%clk 0:03:01]} 11. a3 {[%clk 0:02:23]}  Nxd3 {[%clk 0:03:01]} 12. Qxd3 {[%clk 0:02:24]}  Bxc5 {[%clk 0:03:01]} 13. b4 {[%clk 0:02:24]}  Be7 {[%clk 0:03:01]} 14. Bb2 {[%clk 0:02:24]}  O-O {[%clk 0:03:00]} 15. Nbd2 {[%clk 0:02:24]}  Rd8 {[%clk 0:02:58]} 16. Qb3 {[%clk 0:02:24]}  Bb7 {[%clk 0:02:56]} 17. Rac1 {[%clk 0:02:25]}  Qb8 {[%clk 0:02:23]} 18. Be5 {[%clk 0:02:24]}  Bd6 {[%clk 0:02:20]} 19. Qb2 {[%clk 0:02:22]}  Bxe5 {[%clk 0:02:19]} 20. Nxe5 {[%clk 0:02:21]}  Qd6 {[%clk 0:02:14]} 21. f3 {[%clk 0:02:01]}  h6 {[%clk 0:02:03]} 22. Rc2 {[%clk 0:01:54]}  Qb6 {[%clk 0:02:02]} 23. Re1 {[%clk 0:01:44]}  Nd5 {[%clk 0:01:56]} 24. Rc5 {[%clk 0:01:43]}  a5 {[%clk 0:01:52]} 25. e4 {[%clk 0:00:57]}  axb4 {[%clk 0:01:51]} 26. axb4 {[%clk 0:00:57]}  Ra2 {[%clk 0:01:04]} 27. Qc1 {[%clk 0:00:28]}  Nxb4 {[%clk 0:01:03]} 28. Nb3 {[%clk 0:00:28]}  Na6 {[%clk 0:00:59]} 29. Kh1 {[%clk 0:00:22]}  Nxc5 {[%clk 0:00:59]} 30. Nxc5 {[%clk 0:00:23]}  Bc8 {[%clk 0:00:55]} 31. Nb3 {[%clk 0:00:20]}  Qf2 {[%clk 0:00:43]} 32. Rg1 {[%clk 0:00:20]}  Qc2 {[%clk 0:00:41]} 33. Qe3 {[%clk 0:00:19]}  Ra3 {[%clk 0:00:40]} 34. Qb6 {[%clk 0:00:18]}  Rf8 {[%clk 0:00:36]} 35. Nd4 {[%clk 0:00:17]}  Qc3 {[%clk 0:00:27]} 36. Nec6 {[%clk 0:00:15]}  Ra1 {[%clk 0:00:23]} 37. h3 {[%clk 0:00:12]}  Rxg1+ {[%clk 0:00:20]} 38. Kxg1 {[%clk 0:00:12]}  e5 {[%clk 0:00:19]} 39. Nxb5 {[%clk 0:00:08]}  Qc1+ {[%clk 0:00:19]} 40. Kh2 {[%clk 0:00:08]}  Bd7 {[%clk 0:00:20]} 41. Ne7+ {[%clk 0:00:05]}  Kh8 {[%clk 0:00:20]} 42. Nd6 {[%clk 0:00:03]}  Be6 {[%clk 0:00:19]} 43. Nc6 {[%clk 0:00:02]}  Ra8 {[%clk 0:00:16]} 44. Nb5 {[%clk 0:00:01]}  Qf4+ {[%clk 0:00:16]} 45. Kg1 {[%clk 0:00:01]}  Ra1+ {[%clk 0:00:16]} 46. Kf2 {[%clk 0:00:01]}  Qd2+ {[%clk 0:00:16]} 47. Kg3 {[%clk 0:00:02]}  Qe1+ {[%clk 0:00:17]} 48. Kh2 {[%clk 0:00:01]}  Qh1+ {[%clk 0:00:12]} 49. Kg3 {[%clk 0:00:02]}  Qe1+ {[%clk 0:00:12]} 50. Kh2 {[%clk 0:00:02]}  Ra2 {[%clk 0:00:11]} 51. Qd8+ {[%clk 0:00:01]}  Kh7 {[%clk 0:00:10]} 52. Ne7 {[%clk 0:00:02]}  f6 {[%clk 0:00:09]} 53. Qe8 {[%clk 0:00:02]}  Rxg2+ {[%clk 0:00:08]} 54. Kxg2 {[%clk 0:00:02]}  Qe2+ {[%clk 0:00:07]} 55. Kg3 {[%clk 0:00:03]}  Qe1+ {[%clk 0:00:07]} 56. Kg2 {[%clk 0:00:03]}  Qe2+ {[%clk 0:00:06]} 57. Kg3 {[%clk 0:00:04]}  Qe1+ {[%clk 0:00:06]} 58. Kg2 {[%clk 0:00:04]} 1/2-1/2


[Site "https://www.chess.com"]

[Event "Titled Tuesday Blitz December 06 Early 2022"]
[White "Hirneise, Jens"]
[Black "Albertini, Luca"]
[WhiteFideId "24614734"]
[BlackFideId "847038"]
[WhiteElo "2345"]
[BlackElo "2207"]
[Result "1-0"]
[Round "06"]
[TimeControl "180+1"]
[Date "2022.12.07"]
[WhiteClock "0:00:27"]
[BlackClock "0:00:20"]

1. Nf3 {[%clk 0:03:00]}  d5 {[%clk 0:02:56]} 2. c4 {[%clk 0:02:58]}  d4 {[%clk 0:02:56]} 3. e3 {[%clk 0:02:56]}  c5 {[%clk 0:02:54]} 4. b4 {[%clk 0:02:55]}  Nc6 {[%clk 0:02:49]} 5. b5 {[%clk 0:02:46]}  Nb8 {[%clk 0:02:49]} 6. exd4 {[%clk 0:02:37]}  cxd4 {[%clk 0:02:44]} 7. Bb2 {[%clk 0:02:37]}  Bg4 {[%clk 0:02:44]} 8. h3 {[%clk 0:02:37]}  Bh5 {[%clk 0:02:31]} 9. g4 {[%clk 0:02:22]}  Bg6 {[%clk 0:02:31]} 10. Bxd4 {[%clk 0:02:22]}  f6 {[%clk 0:02:27]} 11. Be3 {[%clk 0:02:11]}  e5 {[%clk 0:02:26]} 12. Be2 {[%clk 0:02:07]}  h5 {[%clk 0:02:25]} 13. Nh4 {[%clk 0:01:56]}  Be4 {[%clk 0:02:15]} 14. f3 {[%clk 0:01:47]}  hxg4 {[%clk 0:01:48]} 15. hxg4 {[%clk 0:01:38]}  Bd3 {[%clk 0:01:35]} 16. Kf2 {[%clk 0:01:36]}  Ne7 {[%clk 0:01:19]} 17. Nc3 {[%clk 0:01:15]}  f5 {[%clk 0:01:09]} 18. Nxf5 {[%clk 0:01:06]}  Rxh1 {[%clk 0:01:10]} 19. Qxh1 {[%clk 0:00:54]}  Nxf5 {[%clk 0:01:05]} 20. Qh5+ {[%clk 0:00:53]}  Kd7 {[%clk 0:00:55]} 21. Bxd3 {[%clk 0:00:40]}  Nxe3 {[%clk 0:00:42]} 22. dxe3 {[%clk 0:00:40]}  b6 {[%clk 0:00:20]} 23. Be4 {[%clk 0:00:32]}  Kc7 {[%clk 0:00:20]} 24. Qf7+ {[%clk 0:00:27]} 1-0


[Site "https://www.chess.com"]

[Event "Titled Tuesday Blitz December 06 Early 2022"]
[White "Hristodoulou, Panagiotis"]
[Black "Dardha, Daniel"]
[WhiteFideId "4214340"]
[BlackFideId "240990"]
[WhiteElo "2272"]
[BlackElo "2528"]
[Result "0-1"]
[Round "06"]
[TimeControl "180+1"]
[Date "2022.12.06"]
[WhiteClock "0:00:01"]
[BlackClock "0:01:09"]

1. e4 {[%clk 0:02:50]}  e5 {[%clk 0:02:59]} 2. Nf3 {[%clk 0:02:50]}  Nc6 {[%clk 0:02:59]} 3. Bc4 {[%clk 0:02:50]}  Bc5 {[%clk 0:02:58]} 4. O-O {[%clk 0:02:49]}  Nf6 {[%clk 0:02:57]} 5. d3 {[%clk 0:02:48]}  h6 {[%clk 0:02:56]} 6. c3 {[%clk 0:02:44]}  d6 {[%clk 0:02:50]} 7. a4 {[%clk 0:02:42]}  a5 {[%clk 0:02:43]} 8. Nbd2 {[%clk 0:02:37]}  Ba7 {[%clk 0:02:42]} 9. Re1 {[%clk 0:02:37]}  g5 {[%clk 0:02:30]} 10. Bb5 {[%clk 0:01:29]}  g4 {[%clk 0:02:27]} 11. Nh4 {[%clk 0:01:28]}  Bd7 {[%clk 0:02:19]} 12. Nf5 {[%clk 0:01:14]}  Bxf5 {[%clk 0:02:18]} 13. exf5 {[%clk 0:01:15]}  h5 {[%clk 0:02:15]} 14. Ne4 {[%clk 0:01:13]}  Nxe4 {[%clk 0:02:14]} 15. dxe4 {[%clk 0:01:14]}  Qh4 {[%clk 0:01:57]} 16. Be3 {[%clk 0:01:12]}  Bxe3 {[%clk 0:01:55]} 17. Rxe3 {[%clk 0:01:13]}  Kf8 {[%clk 0:01:46]} 18. Qd5 {[%clk 0:01:09]}  Nd8 {[%clk 0:01:44]} 19. Bc4 {[%clk 0:00:58]}  Qf6 {[%clk 0:01:43]} 20. Rd1 {[%clk 0:00:56]}  h4 {[%clk 0:01:41]} 21. Qd2 {[%clk 0:00:28]}  Nc6 {[%clk 0:01:40]} 22. Bd5 {[%clk 0:00:26]}  Kg7 {[%clk 0:01:38]} 23. Qe2 {[%clk 0:00:20]}  Qg5 {[%clk 0:01:25]} 24. Qb5 {[%clk 0:00:13]}  Rab8 {[%clk 0:01:25]} 25. Bxc6 {[%clk 0:00:10]}  bxc6 {[%clk 0:01:26]} 26. Qxc6 {[%clk 0:00:10]}  Rxb2 {[%clk 0:01:26]} 27. Qxc7 {[%clk 0:00:11]}  Qf4 {[%clk 0:01:21]} 28. Rf1 {[%clk 0:00:07]}  Rxf2 {[%clk 0:01:21]} 29. Rxf2 {[%clk 0:00:06]}  Qxe3 {[%clk 0:01:22]} 30. Qxd6 {[%clk 0:00:03]}  g3 {[%clk 0:01:10]} 31. Qxe5+ {[%clk 0:00:01]}  Kh7 {[%clk 0:01:09]} 32. hxg3 {[%clk 0:00:01]}  hxg3 {[%clk 0:01:09]} 0-1


[Site "https://www.chess.com"]

[Event "Titled Tuesday Blitz December 06 Early 2022"]
[White "Ismayil, Malak"]
[Black "Liu, Xiangyi"]
[WhiteFideId "13412604"]
[BlackFideId "8605718"]
[WhiteElo "1880"]
[BlackElo "2323"]
[Result "0-1"]
[Round "06"]
[TimeControl "180+1"]
[Date "2022.12.07"]
[WhiteClock "0:01:48"]
[BlackClock "0:02:01"]

1. e4 {[%clk 0:03:00]}  c5 {[%clk 0:02:52]} 2. Nf3 {[%clk 0:03:01]}  e6 {[%clk 0:02:51]} 3. g3 {[%clk 0:02:50]}  h5 {[%clk 0:02:50]} 4. h4 {[%clk 0:02:50]}  Nf6 {[%clk 0:02:50]} 5. Bg2 {[%clk 0:02:50]}  Ng4 {[%clk 0:02:50]} 6. d3 {[%clk 0:02:42]}  Nc6 {[%clk 0:02:49]} 7. Nc3 {[%clk 0:02:43]}  a6 {[%clk 0:02:49]} 8. Bg5 {[%clk 0:02:41]}  f6 {[%clk 0:02:49]} 9. Bd2 {[%clk 0:02:36]}  b5 {[%clk 0:02:49]} 10. a3 {[%clk 0:02:36]}  Rb8 {[%clk 0:02:48]} 11. Qe2 {[%clk 0:02:35]}  Qb6 {[%clk 0:02:45]} 12. e5 {[%clk 0:02:18]}  Ncxe5 {[%clk 0:02:28]} 13. Nxe5 {[%clk 0:02:13]}  Nxe5 {[%clk 0:02:29]} 14. f4 {[%clk 0:02:12]}  Ng4 {[%clk 0:02:27]} 15. f5 {[%clk 0:01:53]}  Bd6 {[%clk 0:02:06]} 16. O-O-O {[%clk 0:01:52]}  b4 {[%clk 0:02:03]} 17. Nb1 {[%clk 0:01:47]}  bxa3 {[%clk 0:02:02]} 18. Nxa3 {[%clk 0:01:48]}  Qxb2# {[%clk 0:02:01]} 0-1


[Site "https://www.chess.com"]

[Event "Titled Tuesday Blitz December 06 Early 2022"]
[White "Jobava, Baadur"]
[Black "Artemenko, Oleg"]
[WhiteFideId "13601520"]
[BlackFideId "14201798"]
[WhiteElo "2582"]
[BlackElo "2287"]
[Result "1-0"]
[Round "06"]
[TimeControl "180+1"]
[Date "2022.12.06"]
[WhiteClock "0:01:18"]
[BlackClock "0:00:18"]

1. b3 {[%clk 0:03:00]}  e5 {[%clk 0:02:59]} 2. Bb2 {[%clk 0:03:01]}  Bd6 {[%clk 0:02:59]} 3. g3 {[%clk 0:02:56]}  Nc6 {[%clk 0:02:58]} 4. Bg2 {[%clk 0:02:56]}  f5 {[%clk 0:02:56]} 5. c4 {[%clk 0:02:53]}  Nf6 {[%clk 0:02:55]} 6. Nc3 {[%clk 0:02:53]}  O-O {[%clk 0:02:48]} 7. e3 {[%clk 0:02:54]}  a6 {[%clk 0:02:32]} 8. Nge2 {[%clk 0:02:53]}  Qe7 {[%clk 0:02:32]} 9. O-O {[%clk 0:02:50]}  Ba3 {[%clk 0:02:27]} 10. Bxa3 {[%clk 0:02:45]}  Qxa3 {[%clk 0:02:26]} 11. Qc1 {[%clk 0:02:46]}  Qxc1 {[%clk 0:02:15]} 12. Rfxc1 {[%clk 0:02:36]}  Ne7 {[%clk 0:02:15]} 13. b4 {[%clk 0:02:33]}  Rb8 {[%clk 0:01:58]} 14. a4 {[%clk 0:02:31]}  b6 {[%clk 0:01:57]} 15. d4 {[%clk 0:02:26]}  d6 {[%clk 0:01:53]} 16. b5 {[%clk 0:02:12]}  a5 {[%clk 0:01:49]} 17. c5 {[%clk 0:02:06]}  dxc5 {[%clk 0:01:44]} 18. dxc5 {[%clk 0:02:07]}  Be6 {[%clk 0:01:44]} 19. f4 {[%clk 0:01:46]}  bxc5 {[%clk 0:01:24]} 20. fxe5 {[%clk 0:01:47]}  Ng4 {[%clk 0:01:24]} 21. Nf4 {[%clk 0:01:47]}  Kf7 {[%clk 0:01:22]} 22. Nxe6 {[%clk 0:01:43]}  Kxe6 {[%clk 0:01:22]} 23. Ne2 {[%clk 0:01:44]}  g5 {[%clk 0:01:21]} 24. Rxc5 {[%clk 0:01:44]}  Nxe5 {[%clk 0:00:58]} 25. Nd4+ {[%clk 0:01:43]}  Kd6 {[%clk 0:00:57]} 26. Rc2 {[%clk 0:01:35]}  Nd5 {[%clk 0:00:48]} 27. Rd1 {[%clk 0:01:35]}  Ng4 {[%clk 0:00:21]} 28. Rc6+ {[%clk 0:01:32]}  Kd7 {[%clk 0:00:17]} 29. Bxd5 {[%clk 0:01:27]}  Nxe3 {[%clk 0:00:17]} 30. Be6+ {[%clk 0:01:28]}  Ke7 {[%clk 0:00:18]} 31. Re1 {[%clk 0:01:25]}  f4 {[%clk 0:00:18]} 32. Nf5+ {[%clk 0:01:18]} 1-0


[Site "https://www.chess.com"]

[Event "Titled Tuesday Blitz December 06 Early 2022"]
[White "Kamsky, Gata"]
[Black "Gabdrakhmanov, Azat"]
[WhiteFideId "2000024"]
[BlackFideId "34189197"]
[WhiteElo "2666"]
[BlackElo "2254"]
[Result "0-1"]
[Round "06"]
[TimeControl "180+1"]
[Date "2022.12.07"]
[WhiteClock "0:00:05"]
[BlackClock "0:00:16"]

1. d4 {[%clk 0:03:00]}  Nf6 {[%clk 0:02:59]} 2. Bf4 {[%clk 0:02:43]}  g6 {[%clk 0:02:59]} 3. c3 {[%clk 0:02:42]}  Bg7 {[%clk 0:02:58]} 4. Nf3 {[%clk 0:02:42]}  O-O {[%clk 0:02:59]} 5. Nbd2 {[%clk 0:02:41]}  d5 {[%clk 0:02:59]} 6. e3 {[%clk 0:02:40]}  b6 {[%clk 0:02:59]} 7. a4 {[%clk 0:02:35]}  c5 {[%clk 0:02:58]} 8. h3 {[%clk 0:02:34]}  Bf5 {[%clk 0:02:55]} 9. Be2 {[%clk 0:02:33]}  Nc6 {[%clk 0:02:54]} 10. O-O {[%clk 0:02:33]}  Ne4 {[%clk 0:02:49]} 11. Qb3 {[%clk 0:02:16]}  Nxd2 {[%clk 0:02:41]} 12. Nxd2 {[%clk 0:02:15]}  c4 {[%clk 0:02:19]} 13. Qa3 {[%clk 0:02:11]}  f6 {[%clk 0:02:12]} 14. b3 {[%clk 0:02:06]}  e5 {[%clk 0:02:10]} 15. Bg3 {[%clk 0:02:05]}  cxb3 {[%clk 0:02:07]} 16. Qxb3 {[%clk 0:02:04]}  Kh8 {[%clk 0:02:05]} 17. Ba6 {[%clk 0:01:46]}  Na5 {[%clk 0:01:52]} 18. Qb4 {[%clk 0:01:43]}  Qd7 {[%clk 0:01:38]} 19. Rfd1 {[%clk 0:01:41]}  Rfd8 {[%clk 0:01:33]} 20. Nf3 {[%clk 0:01:26]}  Nc6 {[%clk 0:01:31]} 21. Qb5 {[%clk 0:01:24]}  e4 {[%clk 0:01:10]} 22. Nd2 {[%clk 0:01:23]}  Na5 {[%clk 0:01:00]} 23. Qxd7 {[%clk 0:01:17]}  Bxd7 {[%clk 0:00:56]} 24. Rdc1 {[%clk 0:01:15]}  Bf8 {[%clk 0:00:47]} 25. Rc2 {[%clk 0:01:12]}  Bc8 {[%clk 0:00:44]} 26. Bb5 {[%clk 0:01:11]}  Bb7 {[%clk 0:00:38]} 27. Raa2 {[%clk 0:00:47]}  Rac8 {[%clk 0:00:36]} 28. Bf1 {[%clk 0:00:45]}  Bd6 {[%clk 0:00:35]} 29. c4 {[%clk 0:00:42]}  Bxg3 {[%clk 0:00:34]} 30. fxg3 {[%clk 0:00:42]}  dxc4 {[%clk 0:00:30]} 31. Bxc4 {[%clk 0:00:32]}  Nxc4 {[%clk 0:00:26]} 32. Rxc4 {[%clk 0:00:33]}  Rxc4 {[%clk 0:00:19]} 33. Nxc4 {[%clk 0:00:32]}  Bd5 {[%clk 0:00:20]} 34. Rc2 {[%clk 0:00:32]}  Rc8 {[%clk 0:00:20]} 35. Na3 {[%clk 0:00:32]}  Rxc2 {[%clk 0:00:21]} 36. Nxc2 {[%clk 0:00:32]}  Bb3 {[%clk 0:00:21]} 37. Nb4 {[%clk 0:00:28]}  Bxa4 {[%clk 0:00:22]} 38. Kf2 {[%clk 0:00:25]}  Bb3 {[%clk 0:00:20]} 39. d5 {[%clk 0:00:19]}  a5 {[%clk 0:00:19]} 40. d6 {[%clk 0:00:19]}  Be6 {[%clk 0:00:19]} 41. Nd5 {[%clk 0:00:17]}  a4 {[%clk 0:00:16]} 42. Ke2 {[%clk 0:00:14]}  a3 {[%clk 0:00:16]} 43. Nb4 {[%clk 0:00:14]}  Kg7 {[%clk 0:00:16]} 44. Kd2 {[%clk 0:00:14]}  Kf7 {[%clk 0:00:16]} 45. Kc3 {[%clk 0:00:14]}  Ke8 {[%clk 0:00:16]} 46. Nc2 {[%clk 0:00:14]}  a2 {[%clk 0:00:15]} 47. Kb2 {[%clk 0:00:13]}  Kd7 {[%clk 0:00:16]} 48. Nb4 {[%clk 0:00:04]}  Kxd6 {[%clk 0:00:15]} 49. Nxa2 {[%clk 0:00:04]}  Bxa2 {[%clk 0:00:15]} 50. Kxa2 {[%clk 0:00:04]}  Kc5 {[%clk 0:00:16]} 51. Kb3 {[%clk 0:00:05]}  b5 {[%clk 0:00:16]} 52. g4 {[%clk 0:00:05]}  g5 {[%clk 0:00:16]} 53. g3 {[%clk 0:00:04]}  b4 {[%clk 0:00:16]} 54. h4 {[%clk 0:00:05]}  h6 {[%clk 0:00:16]} 0-1


[Site "https://www.chess.com"]

[Event "Titled Tuesday Blitz December 06 Early 2022"]
[White "Kazakouski, Valery"]
[Black "Ovchinnikov, Vsevolod"]
[WhiteFideId "13507443"]
[BlackFideId "24176842"]
[WhiteElo "2516"]
[BlackElo "2376"]
[Result "1-0"]
[Round "06"]
[TimeControl "180+1"]
[Date "2022.12.06"]
[WhiteClock "0:00:22"]
[BlackClock "0:00:01"]

1. Nf3 {[%clk 0:03:00]}  Nf6 {[%clk 0:02:59]} 2. c4 {[%clk 0:02:59]}  g6 {[%clk 0:02:59]} 3. g3 {[%clk 0:02:59]}  Bg7 {[%clk 0:02:59]} 4. Bg2 {[%clk 0:03:00]}  d5 {[%clk 0:03:00]} 5. cxd5 {[%clk 0:02:59]}  Nxd5 {[%clk 0:03:01]} 6. d4 {[%clk 0:02:59]}  Nc6 {[%clk 0:03:00]} 7. O-O {[%clk 0:02:55]}  Nb6 {[%clk 0:03:00]} 8. e3 {[%clk 0:02:55]}  O-O {[%clk 0:02:59]} 9. Nc3 {[%clk 0:02:55]}  e5 {[%clk 0:02:58]} 10. d5 {[%clk 0:02:55]}  Ne7 {[%clk 0:02:58]} 11. e4 {[%clk 0:02:55]}  Bg4 {[%clk 0:02:58]} 12. h3 {[%clk 0:02:55]}  Bxf3 {[%clk 0:02:59]} 13. Qxf3 {[%clk 0:02:56]}  c6 {[%clk 0:02:59]} 14. Rd1 {[%clk 0:02:56]}  cxd5 {[%clk 0:02:59]} 15. exd5 {[%clk 0:02:57]}  Nf5 {[%clk 0:02:55]} 16. d6 {[%clk 0:02:57]}  Rb8 {[%clk 0:02:50]} 17. Be3 {[%clk 0:01:46]}  Nd4 {[%clk 0:01:27]} 18. Bxd4 {[%clk 0:01:26]}  exd4 {[%clk 0:01:26]} 19. Nb5 {[%clk 0:01:27]}  Nc4 {[%clk 0:01:27]} 20. Qd5 {[%clk 0:00:57]}  Nxb2 {[%clk 0:01:00]} 21. Rd2 {[%clk 0:00:57]}  Na4 {[%clk 0:00:54]} 22. Nxd4 {[%clk 0:00:57]}  Nc3 {[%clk 0:00:35]} 23. Qf3 {[%clk 0:00:57]}  Rc8 {[%clk 0:00:17]} 24. Nb3 {[%clk 0:00:52]}  b5 {[%clk 0:00:07]} 25. Re1 {[%clk 0:00:49]}  b4 {[%clk 0:00:07]} 26. Qb7 {[%clk 0:00:46]}  a5 {[%clk 0:00:05]} 27. Qa6 {[%clk 0:00:26]}  a4 {[%clk 0:00:04]} 28. Na5 {[%clk 0:00:27]}  Qd7 {[%clk 0:00:02]} 29. Qb7 {[%clk 0:00:23]}  Qf5 {[%clk 0:00:01]} 30. d7 {[%clk 0:00:21]}  Rcd8 {[%clk 0:00:01]} 31. Nc6 {[%clk 0:00:22]} 1-0


[Site "https://www.chess.com"]